Cogmind - Beta 14 @@@ ROGUE MODE // 2024.08.10 @ 21:52:53 Player: saltine Result: Destroyed by FX-6KU(p) with EM Pulse Gun Performance ------------- Evolutions (0) 0 Regions Visited (4) 800 Robots Destroyed (4) 20 Value Destroyed (60) 60 Prototype IDs (6) 120 Alien Tech Used (0) 0 Bonus (300) 300 TOTAL SCORE: 1300 Bonus ------- Registered with UFD 300 Cogmind --------- Core Integrity 0/250 Matter 300/300 Energy 98/100 System Corruption 0% Temperature Cool (12) Movement Core (50) Location -7/Scraptown Parts ------- > --- POWER (1) -------- (None) > --- PROPULSION (2) --- Compact Wheel > --- UTILITY (2) ------ Improved Targeting Computer > --- WEAPON (2) ------- (None) > --- INVENTORY (5) ---- Light Ion Engine Medium Laser Vortex Trap DRS Beacon (Ready) Peak State ------------ > --- POWER ------------ Light Deuterium Engine > --- PROPULSION ------- Compact Wheel Compact Wheel > --- UTILITY ---------- Small Storage Unit Improved Targeting Computer > --- WEAPON ----------- Chainsword > --- INVENTORY -------- Light Ion Engine Medium Laser [Rating: 12] Favorites ----------- Power Light Deuterium Engine Engine Light Deuterium Engine Propulsion Compact Wheel Treads Light Treads Leg Aluminum Leg Wheel Compact Wheel Utility Small Storage Unit Storage Small Storage Unit Processor Improved Targeting Computer Weapon Assault Rifle Ballistic Gun Assault Rifle Slashing Weapon Chainsword Build | -11 -10 -10 -7 -7 ------- Run | Yrd Mat Sub Rec Scr Slots Evolved . | . . . . . Power . | . . . . . Propulsion . | . . . . . Utility . | . . . . . Weapon . | . . . . . Parts Attached 7 | 2 . . 5 . Power 1 | . . . 1 . Engine 1 | . . . 1 . Core . | . . . . . Reactor . | . . . . . Propulsion 4 | 2 . . 2 . Treads 2 | 2 . . . . Leg . | . . . . . Wheel 2 | . . . 2 . Hover . | . . . . . Flight . | . . . . . Utility 1 | . . . 1 . Device . | . . . . . Storage . | . . . . . Processor 1 | . . . 1 . Hackware . | . . . . . Protection . | . . . . . Artifact . | . . . . . Weapon 1 | . . . 1 . Energy Gun . | . . . . . Energy Cannon . | . . . . . Ballistic Gun . | . . . . . Ballistic Cannon . | . . . . . Launcher . | . . . . . Special Weapon . | . . . . . Impact Weapon . | . . . . . Slashing Weapon 1 | . . . 1 . Piercing Weapon . | . . . . . Special Melee Weapon . | . . . . . Unidentified Prototypes . | . . . . . Parts Lost 8 | . . 5 . 3 Power 2 | . . 1 . 1 Propulsion 3 | . . 2 . 1 Utility . | . . . . . Weapon 3 | . . 2 . 1 Highest Loss Streak 5 | . . 5 . 3 To Critical Strikes 1 | . . 1 . . Average Slot Usage (%) 80 | . 85 69 55 84 Engine 12 | . 14 7 9 13 Treads 9 | . 28 22 . . Wheel 17 | . . . 15 27 Storage 13 | . 14 14 14 13 Processor 8 | . . . 7 14 Ballistic Gun 9 | . 28 24 . . Slashing Weapon 8 | . . . 8 13 Peak Build Rating 12 | 6 6 6 12 12 Average Rating 9 | 6 6 5 7 11 On Entrance 6 | 6 6 6 1 12 Naked Turns . | . . . . . Heaviest Build 14 | 14 14 14 13 13 Greatest Support 40 | 40 40 40 32 32 Greatest Overweight (x) 3 | . . 2 3 . Average Overweight (x) . | . . . . . Largest Inventory Capacity 8 | 8 8 8 8 8 Average Capacity 7 | 8 8 8 8 7 Most Carried 6 | 6 4 4 4 4 Average Carried 3 | 5 4 4 2 2 Final Capacity 8 | 8 8 8 8 5 Final Carried 4 | 4 4 4 2 4 Class Distribution -------------------- 100% | Mutant Dominant Class ---------------- Mutant | -10/Materials Mutant | -10/Subcaves Mutant | -7/Recycling Mutant | -7/Scraptown Resources | -11 -10 -10 -7 -7 ----------- Run | Yrd Mat Sub Rec Scr Matter Collected 337 | 190 . 62 . 85 Remotely . | . . . . . Salvage Created 78 | . . 78 . . Parts 5 | . . 5 . . Haulers Intercepted . | . . . . . Recyclers Shooed . | . . . . . Parts Field Recycled . | . . . . . Retrieved Matter . | . . . . . Parts Self-Destructed 8 | . . 8 . . Prevented . | . . . . . Kills | -11 -10 -10 -7 -7 ------- Run | Yrd Mat Sub Rec Scr Combat Hostiles Destroyed 3 | . . 3 . . Guns 3 | . . 3 . . Classes Destroyed 2 | . . 2 . . Turret 1 | . . 1 . . Swarmer 3 | . . 3 . . Best Kill Streak 3 | . . 3 . . Combat Bots Only 3 | . . 3 . . Max Kills in Single Turn 1 | . . 1 . . Gunslinging . | . . . . . Exploded . | . . . . . Melee . | . . . . . Uniques/NPCs Destroyed . | . . . . . Combat | -11 -10 -10 -7 -7 -------- Run | Yrd Mat Sub Rec Scr Hostile Shots Fired 185 | . . 152 . 33 Missed 71 | . . 59 . 12 Damage Taken 1073 | . . 766 . 307 Core 254 | . . 111 . 143 Absorbed by Shields . | . . . . . Core Remaining (%) 100 | 100 . . . . Volleys Fired 17 | . . 17 . . Largest 2 | . . 2 . . Hottest 40 | . . 40 . . Shots Fired 34 | . . 34 . . Gun 34 | . . 34 . . Cannon . | . . . . . Launcher . | . . . . . Special . | . . . . . Kinetic 34 | . . 34 . . Thermal . | . . . . . Explosive . | . . . . . Electromagnetic . | . . . . . Robot Hit Streak 11 | . . 11 . . Robot Miss Streak 2 | . . 2 . . Penetration Max . | . . . . . Secondary Targets 3 | . . 3 . . Max Gunslinging Chain 1 | . . 1 . . Shots Hit Robots 24 | . . 24 . . Core Hits 7 | . . 7 . . Critical Kills . | . . . . . Critical Parts Destroyed . | . . . . . Critical Strikes . | . . . . . Melee Attacks 1 | . . . . 1 Impact . | . . . . . Slashing 1 | . . . . 1 Piercing . | . . . . . Sneak Attacks . | . . . . . Combat Hostiles . | . . . . . Follow-up Attacks . | . . . . . Damage Inflicted 302 | . . 302 . . Guns 302 | . . 302 . . Cannons . | . . . . . Explosions . | . . . . . Melee . | . . . . . Ramming . | . . . . . Kinetic 302 | . . 302 . . Thermal . | . . . . . Explosive . | . . . . . Electromagnetic . | . . . . . Impact . | . . . . . Slashing . | . . . . . Piercing . | . . . . . Highest Corruption . | . . . . . Average Corruption . | . . . . . Corruption Purged . | . . . . . Corruption Blocked . | . . . . . Overload Shots . | . . . . . Overflow Damage . | . . . . . Projectiles . | . . . . . Explosions . | . . . . . Melee . | . . . . . Knockbacks . | . . . . . Impact . | . . . . . Kinetic . | . . . . . Secondary . | . . . . . Self-Inflicted Damage . | . . . . . Shots . | . . . . . Rammed . | . . . . . Targets Rammed . | . . . . . Kicked . | . . . . . Crushed . | . . . . . Highest Temperature 9 | . . 9 . 7 Average Temperature 5 | . . 5 . 7 Received Heat Transfer 566 | . . 444 . 122 Siege Activations . | . . . . . Robots Corrupted . | . . . . . Combat Hostiles . | . . . . . Parts Fried . | . . . . . Impact Corruptions . | . . . . . Robots Melted . | . . . . . Combat Hostiles . | . . . . . Parts Melted . | . . . . . Heat Transferred . | . . . . . Parts Sabotaged . | . . . . . Parts Stolen . | . . . . . Parts Stripped . | . . . . . Power Chain Reactions . | . . . . . Alert | -11 -10 -10 -7 -7 ------- Run | Yrd Mat Sub Rec Scr Peak Influence 36 | . 11 . 36 . Initial 36 | . . . 36 . Average 17 | . 9 . 36 . Maximum Alert Level . | . . . . . Low Security (%) 100 | 100 100 . 100 . Level 1 . | . . . . . Level 2 . | . . . . . Level 3 . | . . . . . Level 4 . | . . . . . Level 5 . | . . . . . High Security . | . . . . . Max Security . | . . . . . Squads Dispatched . | . . . . . Investigation . | . . . . . Extermination . | . . . . . Reinforcement . | . . . . . Assault . | . . . . . Garrison . | . . . . . Intercept . | . . . . . Searches Triggered . | . . . . . Construction Impeded . | . . . . . Haulers Reinforced . | . . . . . Active Scanning Responses . | . . . . . Cargo Convoy Interrupts . | . . . . . Stealth | -11 -10 -10 -7 -7 --------- Run | Yrd Mat Sub Rec Scr Distress Signals . | . . . . . Communications Jammed . | . . . . . Distress Signals . | . . . . . Times Spotted 23 | . . 10 . 13 Peak Tracking Total 11 | . . 6 . 11 Tactical Retreats 2 | . . 2 . . Traps | -11 -10 -10 -7 -7 ------- Run | Yrd Mat Sub Rec Scr Traps Triggered . | . . . . . Indirectly . | . . . . . Trap Hack Attempts . | . . . . . Triggered . | . . . . . Disarmed . | . . . . . Reprogrammed . | . . . . . Reused . | . . . . . Traps Extracted . | . . . . . Installed . | . . . . . Triggered . | . . . . . Most Traps Carried 1 | . . . . 1 Machines | -11 -10 -10 -7 -7 ---------- Run | Yrd Mat Sub Rec Scr Machines Disabled 2 | . . 1 . 1 Max in Single Turn 1 | . . 1 . 1 Machines Repaired . | . . . . . Machines Dismantled . | . . . . . Machines Sabotaged . | . . . . . Overloaded Fab Kills . | . . . . . Hacking | -11 -10 -10 -7 -7 --------- Run | Yrd Mat Sub Rec Scr Machines Accessed 7 | . 1 . 3 3 Terminals 3 | . 1 . 2 . Fabricators . | . . . . . Repair Stations . | . . . . . Recycling Units 1 | . . . 1 . Scanalyzers . | . . . . . Garrison Access . | . . . . . Total Hacks 22 | . 2 . 9 11 Successful 13 | . 2 . . 11 Failed 9 | . . . 9 . Catastrophic 1 | . . . 1 . Database Lockouts . | . . . . . Manual 8 | . 2 . 6 . Terminals 8 | . 2 . 6 . Fabricators . | . . . . . Repair Stations . | . . . . . Recycling Units 3 | . . . 3 . Scanalyzers . | . . . . . Garrison Access . | . . . . . Terminal Hacks 12 | . 1 . . 11 Record 3 | . . . . 3 Robot Analysis 8 | . 1 . . 7 Derelict Proto ID Bank 1 | . . . . 1 Fabricator Hacks . | . . . . . Repair Station Hacks . | . . . . . Recycling Unit Hacks . | . . . . . Scanalyzer . | . . . . . Garrison Access Hacks . | . . . . . Unauthorized Hacks 1 | . 1 . . . Terminals 1 | . 1 . . . Botnet 1 | . 1 . . . Fabricators . | . . . . . Repair Stations . | . . . . . Recycling Units . | . . . . . Scanalyzers . | . . . . . Garrison Access . | . . . . . Data Cores Recovered . | . . . . . Used . | . . . . . Hacking Detections 4 | . 1 . 3 . Full Trace Events . | . . . . . Feedback Events . | . . . . . Feedback Blocked . | . . . . . Robot Schematics Acquired . | . . . . . Robots Built . | . . . . . Authchips . | . . . . . Time . | . . . . . Total Robot Build Rating . | . . . . . Part Schematics Acquired . | . . . . . Parts Built . | . . . . . Authchips . | . . . . . Time . | . . . . . Total Part Build Rating . | . . . . . Parts Repaired . | . . . . . Time . | . . . . . Parts Recycled . | . . . . . Recycled Matter . | . . . . . Retrieved Matter . | . . . . . Retrieved Components . | . . . . . Parts Scanalyzed . | . . . . . Part Schematics Acquired . | . . . . . Parts Damaged . | . . . . . Bothacking | -11 -10 -10 -7 -7 ------------ Run | Yrd Mat Sub Rec Scr Used RIF Installer . | . . . . . Robots Hacked . | . . . . . Non-combat . | . . . . . Combat . | . . . . . Robot Hacks Applied . | . . . . . Relay Couplers Released . | . . . . . Fabnet Peak Effective % . | . . . . . Robots Rewired . | . . . . . Allies Hacked . | . . . . . Hacks Repelled . | . . . . . Allies | -11 -10 -10 -7 -7 -------- Run | Yrd Mat Sub Rec Scr Total Allies . | . . . . . Largest Group . | . . . . . Highest-Rated Group . | . . . . . Highest-Rated Ally . | . . . . . Total Orders . | . . . . . Ally Attacks . | . . . . . Total Damage . | . . . . . Kills . | . . . . . Allies Corrupted . | . . . . . Allies Melted . | . . . . . Intel | -11 -10 -10 -7 -7 ------- Run | Yrd Mat Sub Rec Scr Robot Analysis Total 8 | . 1 . . 7 Derelict Logs Recovered . | . . . . . Drone Launches . | . . . . . Drone Recoveries . | . . . . . Exploration | -11 -10 -10 -7 -7 ------------- Run | Yrd Mat Sub Rec Scr Turns Passed 1601 | 4 445 80 186 886 Spaces Moved 1106 | 1 25 19 175 886 Core 86 | . . 4 72 10 Treads 41 | 1 25 15 . . Legs . | . . . . . Wheels 979 | . . . 103 876 Hover . | . . . . . Flight . | . . . . . Fastest Speed 50 | 160 160 100 100 50 Average Speed 102 | 160 160 155 102 99 Slowest Speed 200 | 160 160 160 200 100 Overloaded Moves . | . . . . . Propulsion Burnouts . | . . . . . Robots Hopped . | . . . . . Cave-ins Triggered . | . . . . . Exploration Rate (%) 23 | 2 8 2 32 74 Regions Visited 4 Branch Regions 3 Pre-discovered Areas . | . . . . . Known Exits Taken . | . . . . . Unknown Exits Taken 4 | 1 1 1 1 . Scrap Searched 2 | . . . . 2 Spaces Dug . | . . . . . Terrain Destroyed . | . . . . . Melee . | . . . . . Projectile . | . . . . . AOE . | . . . . . Terrain Rammed . | . . . . . Walls Destroyed . | . . . . . Machines Disabled . | . . . . . Actions | -11 -10 -10 -7 -7 --------- Run | Yrd Mat Sub Rec Scr Total 1538 | 4 430 35 179 890 Wait 406 | . 406 . . . Move 1102 | . 24 18 174 886 Hop . | . . . . . Pick Up 2 | . . . . 2 Fast Attach 3 | . . . 3 . Attach 2 | . . . 2 . Detach . | . . . . . Swap 2 | 2 . . . . Drop 3 | 2 . . . 1 Fire 17 | . . 17 . . Melee 1 | . . . . 1 Ram . | . . . . . Kick . | . . . . . Crush . | . . . . . Escape Stasis . | . . . . . Rewire . | . . . . . Trap . | . . . . . Miscellaneous . | . . . . . Route ------- -11/Scrapyard -10/Materials -10/Subcaves -7/Recycling -7/Scraptown History --------- Turn | Location | Event 5 | -11/Scrapyard | Discovered new exit (range 0) 5 | -11/Scrapyard | Entered Materials 311 | -10/Materials | Build established: Mutant 429 | -10/Materials | Discovered new exit (range 5) 450 | -10/Materials | Entered Subcaves 475 | -10/Subcaves | Discovered new exit (range 15) 530 | -10/Subcaves | Entered Recycling 560 | -7/Recycling | Lost 5 parts (1p2n2w) 690 | -7/Recycling | Scanned before Scraplab entrance 705 | -7/Recycling | Entered Scraplab 714 | -7/Recycling | Discovered new exit (range 3) 716 | -7/Recycling | Entered Scraptown 1048 | -7/Scraptown | Visited Fellowship of the Rings 1079 | -7/Scraptown | Visited UFD Registry 1079 | -7/Scraptown | Registered with UFD as "Powerspawn" 1117 | -7/Scraptown | Visited LU-1G1's Boring Crew 1175 | -7/Scraptown | Visited Observation Area 1217 | -7/Scraptown | Visited Science Testing Area 1234 | -7/Scraptown | Visited Derelict Rescue Squad 1240 | -7/Scraptown | Found DRS Beacon 1262 | -7/Scraptown | Visited Research Penetration Think Tank 1283 | -7/Scraptown | Visited Science Guys 1456 | -7/Scraptown | Visited Analyses Database 1478 | -7/Scraptown | Visited Curators Association 1496 | -7/Scraptown | Visited Abandonware Association 1503 | -7/Scraptown | Learned abandonware demo "OVRCLOCK.EXE" 1508 | -7/Scraptown | Learned abandonware demo "REBOOT5.EXE" 1573 | -7/Scraptown | Attacked by Scraptown defenders 1575 | -7/Scraptown | Core integrity fell below 50% 1600 | -7/Scraptown | Core integrity fell below 20% 1602 | -7/Scraptown | Destroyed by FX-6KU(p) with EM Pulse Gun Last Messages --------------- It doesn't take much to get powerful spinning blades to tear through their own housing, and user. Getting this hack off fast enough is a little dangerous, and even if the first Cutter doesn't get you, the other three will. Probably not worth the risk! DATA::[UNSAFE] 01557_ LOCAL NARROWCAST: No unsupervised viewing. 01573_ 0bJail breached. 01573_ ANNOUNCEMENT: Intruder alert! Defend Scraptown! 01574_ Lgt. Deuterium Engine destroyed. 01594_ Machine disabled. 01595_ 38-AZE(r) follow-up attacks with Ripteeth. 01596_ Chainsword destroyed. 01596_ 38-AZE(r) follow-up attacks with Ripteeth. 01597_ Dropped Sml. Storage Unit. 01597_ Com. Wheel destroyed. 01598_ 38-AZE(r) follow-up attacks with Ripteeth. 01598_ 38-AZE(r) destroyed. 01600_ QK-YHC(r) destroyed. 01601_ HV Slug penetrates Machine. Map ----- +----------------------------------------------------+ | ?????????????????????????????????????????????????? | | ?????????????????????????????????????????????????? | | ?????????????????????????????????????????????????? | | ?????????????????????????????????????????????????? | | ?????????????????????????????????????????????????? | | ?????????????????????????????????????????????????? | | ?????????????????????????????????????????????????? | | ?????????????????????????????????????????????????? | | ?????????????????????????????????????????????????? | | ?????????????????????????????????????????????????? | | ?????????###########???????????? ???????????????? | | ######???#"""""""""#???????????? ???????????????? | | # #???#" "#???????????? ???????????????? | | "" # #???#" "" "" "#?########### #??????????????? | | #" # #???#" " " "#?# # #?? ??????????? | | "" # #???#" " " "#?# # #?? ??????????? | | #???#" " " "#?# # #?? ?????????? | | #### #???#" " " "#?# # #?? ?"???????? | | # #???#" """"" "#?# # #?? ? ????????? | | # #???#" "#?# # #?? ?????????? | | # #???# ""#?# # ### ??????????? | | #???# #?# # # ???????????? | | ## ###???##### #####?##### ##### ## #???????????? | | ## ###########!########### ##### ## ##??????????? | | "" """""""""""x%"""""""""" """"" "" "############ | | !!= M @ "## """"""" | | "## " " " | | "## | | ! j p "## & | | h hz & | | """""""""""""""""""""""""""" "## " | | """""""""""""""""""""""""""" "## " " " | | ""###### ################"" "## """"""" | | ""#??? ??????????????#"" "############ | | ""#?? ?????????????#"" "##"""""""#?? | | ""#? "" ""?????????????#"" "## """"""#?? | | ""# "" ????????????###"" "## ""#?? | | ""# " ???????###### #"" "## ""#?? | | "" ""??????? ""#?? | | "" ""??????? "## "#?? | | ""# " ???????###### #"" "## ""#?? | | ""# "" ?????????????###"" "## " """"#?? | | ""#? "" "??????????????#"" "##########?? | | ""#?? ??????????????#"" "#??????????? | | ""#???? ??????????????#"" "############ | | ""###### ################"" "## " """"" | | """""""""""""""""""""""""""" "## "" """"" | | """""""""""""""""""""""""""" "|"" | | "## """ | | "## "" X | +----------------------------------------------------+ Best States ------------- Heat Dissipation 25 Energy Generation 14 Energy Capacity 250 Matter Stores 300 Matter Capacity 300 Sight Range 16 Terrain Scan Density 10 Evasion (%) 50 Targeting Accuracy 6 Recoil Reduction 2 Item Schematics ----------------- None Robot Schematics ------------------ None Fabricated ------------ Nothing Alien Tech Used ----------------- None Achievements -------------- None Challenges ------------ None Game ------ Seed BoreRegenerativeBlaster Manual? 0 Play Time 00:13:08 Cumulative 129.1 hours Start 2024.08.10 @ 17:29:58 End 2024.08.10 @ 21:52:53 Sessions 2 Manual Loads 0 Difficulty Rogue Special Mode None Game No. 114 Rogue 114 Adventurer 0 Explorer 0 Win Type - Total 4 Types 2/0/2/0/0/0/0/0/0 Lore% 63 Gallery% 60 Achievement% 56 Wizard Run 0 Options --------- Layout 0 ASCII 0 Keyboard 0 Movement Arrows Keybinds 0 Fullscreen 2 Font 18/SmallcapsGlow Map View 76x50 Zoom Use 0% Tactical HUD 1 Map Filters NONE Filters NONE Steam 1 RUN: 8fa782e9-3f03-4d36-a692-82db6936f987